fUSD/lending_fUSD_20240215
["ID","MTS","AMOUNT","RATE_DAILY","PERIOD"]
[314092516,1707971436572,-500.0,0.00038528,7]
[314092517,1707971436582,-500.0,0.00038528,7]
[314092518,1707971436591,-500.0,0.00038528,7]
[314092519,1707971436600,-540.20547507,0.00038528,7]
[314092520,1707971436610,-500.0,0.00038528,7]
[314092521,1707971436620,-500.0,0.00038528,7]
[314092522,1707971436629,-779.04,0.00038528,7]
[314092523,1707971436639,-500.0,0.00038528,7]
[314092524,1707971436649,-500.0,0.00038528,7]
[314092525,1707971436659,-500.0,0.00038528,7]
[314092526,1707971436668,-10000.0,0.00038528,7]
[314092527,1707971436678,-500.0,0.00038528,7]
[314092528,1707971436687,-702.13858382,0.00038528,7]
[314092535,1707971437857,-759.73330431,0.00032209,2]
[314092536,1707971437869,-240.25669569,0.00032209,2]
[314092537,1707971437879,-115.40520487,0.00038356,7]
[314092538,1707971437917,-384.59479513,0.00038356,7]
[314092539,1707971437928,-15.34350785,0.00038356,2]
[314092540,1707971437941,-485.26547638,0.00038356,2]
[314092541,1707971437951,-500.0,0.00038356,7]
[314092542,1707971437960,-500.0,0.00038356,7]
[314092543,1707971437970,-9297.86141618,0.00038528,7]
[314092544,1707971437981,-500.0,0.00038528,7]
[314092545,1707971437991,-500.0,0.00038528,7]
[314092546,1707971438001,-500.0,0.00038528,7]
[314092547,1707971438011,-500.0,0.00038528,7]
[314092548,1707971438020,-500.0,0.00038528,7]
[314092549,1707971438032,-500.0,0.00038528,7]
[314092550,1707971438042,-500.0,0.00038528,7]
[314092551,1707971438051,-500.0,0.00038528,7]
[314092552,1707971438061,-500.0,0.00038528,7]
[314092553,1707971438070,-500.0,0.00038528,7]
[314092554,1707971438079,-500.0,0.00038528,7]
[314092555,1707971438088,-500.0,0.00038528,2]
[314092556,1707971438097,-173.58594044,0.00038528,7]
[314092557,1707971438106,-500.0,0.00038528,7]
[314092558,1707971438116,-500.0,0.00038528,7]
[314092559,1707971438125,-508.01398748,0.00038528,7]
[314092560,1707971438135,-500.0,0.00038528,7]
[314092561,1707971438144,-500.0,0.00038528,7]
[314092562,1707971438153,-500.0,0.00038528,7]
[314092563,1707971438164,-1000.0,0.00038528,7]
[314092564,1707971438174,-615.20913584,0.00038528,7]
[314092565,1707971438184,-500.0,0.00038528,7]
[314092566,1707971438194,-500.0,0.00038528,7]
[314092567,1707971438203,-500.0,0.00038528,7]
[314092568,1707971438213,-505.28983493,0.00038528,7]
[314092569,1707971438223,-547.54995438,0.00038528,7]
[314092570,1707971438232,-500.76360616,0.00038528,7]
[314092571,1707971438241,-500.0,0.00038528,7]
[314092572,1707971438251,-570.63802259,0.00038528,7]
[314092573,1707971438260,-500.0,0.00038528,7]
[314092574,1707971438269,-565.97245654,0.00038528,7]
[314092576,1707971438281,-501.88680744,0.00038528,7]
[314092578,1707971438291,-617.64918608,0.00038528,7]
[314092580,1707971438300,-529.11740523,0.00038528,7]
[314092582,1707971438310,-556.93023761,0.00038528,7]
[314092584,1707971438319,-524.43762167,0.00038528,7]
[314092586,1707971438328,-500.0,0.00038529,7]
[314092588,1707971438338,-779.04,0.00038529,7]
[314092590,1707971438347,-154.10912841,0.0003853,2]
[314092592,1707971438357,-4002.5174,0.0003853,2]
[314092595,1707971438366,-8083.94395831,0.0003853,2]
[314092613,1707971438517,-1506.03932303,0.0003853,2]
[314092615,1707971438531,-775.44461026,0.0003853,2]
[314092617,1707971438543,-113554.61217382,0.0003853,2]
[314092620,1707971438554,-2614.7562519,0.0003853,2]
[314092622,1707971438571,-8567.84889268,0.0003853,2]
[314092625,1707971438583,-3923.53932284,0.0003853,2]
[314092628,1707971438604,-422.44401117,0.0003853,2]
[314092630,1707971438615,-2019.0666,0.0003853,2]
[314092841,1707971440702,-500.0,0.00038356,7]
[314092843,1707971440712,-767.199985,0.0003853,2]
[314092845,1707971440724,-332.11683278,0.0003853,2]
[314093070,1707971442928,-842.12484904,0.0003853,2]
[314093072,1707971442939,-426.11826791,0.0003853,2]
[314093075,1707971442951,-1387.35435089,0.0003853,2]
[314093079,1707971442983,-500.0,0.00038528,7]
[314093081,1707971442993,-12984.39646744,0.0003853,2]
[314093084,1707971443004,-14221.6,0.0003853,2]
[314093086,1707971443016,-498.45526266,0.0003853,2]
[314093089,1707971443040,-527.60914326,0.0003853,2]
[314093091,1707971443051,-2075.2035432,0.0003853,2]
[314093094,1707971443070,-851.76477611,0.0003853,2]
[314093098,1707971443098,-6452.74581236,0.0003853,2]
[314093100,1707971443109,-5420.36671691,0.0003853,2]
[314093103,1707971443120,-252.86536168,0.0003853,2]
[314093108,1707971443167,-353.91239329,0.0003853,2]
[314093271,1707971446012,-500.0,0.00038356,7]
[314093272,1707971446037,-500.0,0.00038356,7]
[314093273,1707971446081,-500.0,0.00038356,2]
[314093274,1707971446125,-500.0,0.00038356,7]
[314093275,1707971446166,-500.0,0.00038356,7]
[314093276,1707971446204,-1933.99935684,0.0003853,2]
[314093277,1707971446251,-895.28815809,0.0003853,2]
[314093278,1707971446291,-6447.52786068,0.0003853,2]
[314093279,1707971446330,-1882.01720076,0.0003853,2]
[314093280,1707971446468,-500.0,0.00038356,7]
[314093281,1707971446478,-6600.01615306,0.0003853,2]
[314093295,1707972632018,-969.15350083,0.00033,2]
[314093296,1707972632075,-30.84649917,0.00033,2]
[314093297,1707972632085,-159.15500707,0.00033003,2]
[314093298,1707972632095,-776.47402851,0.00033003,4]
[314093299,1707972632310,-150.0,0.00033102,3]
[314093300,1707972632319,-784.96015457,0.00033103,10]
[314093301,1707972632333,-24637.0830789,0.00033103,10]
[314093302,1707972632343,-1816.52,0.00033103,5]
[314093303,1707972632353,-1835.61,0.00033103,5]
[314093304,1707972632363,-1780.88,0.00033103,5]
[314093305,1707972632373,-1795.07,0.00033103,5]
[314093306,1707972632382,-1777.4,0.00033103,5]
[314093307,1707972632391,-1819.08,0.00033103,5]
[314093308,1707972632401,-1808.85,0.00033103,5]
[314093309,1707972632410,-1824.84,0.00033103,5]
[314093310,1707972632420,-1803.93,0.00033103,5]
[314093311,1707972632429,-1784.9,0.00033103,5]
[314093312,1707972632439,-1829.33,0.00033103,5]
[314093313,1707972632448,-1839.26,0.00033103,5]
[314093314,1707972632457,-4354.009294,0.00033147,10]
[314093315,1707972632466,-2683.59314657,0.00033147,10]
[314093316,1707972632475,-159.15500705,0.00033524,2]
[314093319,1707972632485,-509.81,0.00034011,2]
[314093323,1707972632497,-159.15500705,0.00034044,2]
[314093326,1707972632507,-640.312702,0.000345,2]
[314093329,1707972632517,-159.15500705,0.00034565,2]
[314093331,1707972632526,-960.469053,0.000348,2]
[314093334,1707972632535,-1280.625404,0.00035,2]
[314093336,1707972632544,-915.37,0.00035,2]
[314093338,1707972632554,-159.15500705,0.00035085,2]
[314093340,1707972632563,-297.81201104,0.00035101,3]
[314093342,1707972632572,-286.34,0.00035101,2]
[314093344,1707972632582,-250.0,0.0003519,111]
[314093346,1707972632591,-18249.0,0.000352,3]
[314093348,1707972632600,-250.0,0.00035216,2]
[314093350,1707972632610,-3080.79,0.00035221,2]
[314093352,1707972632619,-222.55,0.00035237,2]
[314093354,1707972632628,-2000.0,0.00035237,2]
[314093356,1707972632638,-191.71,0.00035241,2]
[314093358,1707972632647,-158.81,0.00035244,2]
[314093360,1707972632656,-200.0,0.0003525,2]
[314093362,1707972632665,-413.13,0.0003526,2]
[314093364,1707972632675,-250.0,0.00035301,2]
[314093366,1707972632684,-790.52,0.0003532,2]
[314093367,1707972632694,-150.0,0.00035326,2]
[314093368,1707972632703,-356.29,0.00035397,2]
[314093369,1707972632712,-198.08,0.00035494,2]
[314093370,1707972632721,-582.0,0.00035499,2]
[314093371,1707972632731,-1600.781756,0.000356,2]
[314093372,1707972632740,-3022.93,0.000356,2]
[314093373,1707972632751,-159.15500705,0.00035606,2]
[314093374,1707972632760,-1307.75,0.00035608,2]
[314093375,1707972632770,-500.0,0.00035618,2]
[314093376,1707972632780,-200.0,0.00035681,2]
[314093377,1707972632789,-23900.0,0.00035681,2]
[314093378,1707972632798,-344.3122216,0.00035762,2]
[314093379,1707972632807,-37599.3632,0.00035862,2]
[314093380,1707972632817,-1414.90911264,0.00035862,2]
[314093381,1707972632826,-2241.094458,0.00036,2]
[314093382,1707972632837,-159.15500705,0.00036126,2]
[314093383,1707972632846,-259.0,0.0003623,2]
[314093384,1707972632855,-509.81,0.00036275,2]
[314093385,1707972632864,-155.46,0.000365,3]
[314093386,1707972632873,-155.46,0.000365,3]
[314093387,1707972632883,-155.46,0.000365,3]
[314093388,1707972632892,-155.46,0.000365,3]
[314093389,1707972632901,-344.31222154,0.00036555,2]
[314093390,1707972632911,-1414.90911259,0.00036644,2]
[314093391,1707972632920,-159.15500705,0.00036647,2]
[314093392,1707972632931,-1386.75,0.00036712,2]
[314093393,1707972632940,-413.13,0.00036904,2]
[314093394,1707972632950,-158.81,0.00036983,2]
[314093395,1707972632959,-418.0,0.00037142,2]
[314093396,1707972632969,-159.15500705,0.00037167,2]
[314093397,1707972632978,-344.31222154,0.00037348,2]
[314093398,1707972632988,-1414.90911259,0.00037426,2]
[314093399,1707972632997,-159.15500705,0.00037688,2]
[314093400,1707972633006,-155.46,0.000378,3]
[314093401,1707972633016,-155.46,0.000378,3]
[314093402,1707972633026,-155.46,0.000378,3]
[314093403,1707972633035,-155.46,0.000378,3]
[314093404,1707972633044,-300.0,0.00038,30]
[314093405,1707972633053,-1000.0,0.00038,2]
[314093406,1707972633062,-344.31222154,0.00038141,2]
[314093407,1707972633072,-150.0,0.00038146,2]
[314093408,1707972633082,-1052.8514,0.00038156,2]
[314093409,1707972633091,-150.0,0.00038165,2]
[314093410,1707972633101,-1414.90911259,0.00038208,2]
[314093411,1707972633112,-159.15500705,0.00038208,2]
[314093412,1707972633122,-213588.0939,0.00038256,2]
[314093413,1707972633131,-3001.1467,0.00038256,3]
[314093414,1707972633140,-285.54733844,0.00038256,10]
[314093415,1707972633149,-673.61782753,0.00038256,2]
[314093416,1707972633160,-203.0,0.00038256,2]
[314093417,1707972633169,-1254.0,0.0003831,2]
[314093418,1707972633178,-1231.0,0.0003831,2]
[314093419,1707972633188,-717.2,0.0003831,2]
[314093420,1707972633197,-2670.75,0.0003831,2]
[314093421,1707972633207,-1413.848,0.0003831,2]
[314093422,1707972633216,-343.639,0.0003831,2]
[314093423,1707972633225,-82837.8495868,0.00038346,2]
[314093424,1707972633234,-994.21808195,0.00038353,2]
[314093425,1707972633244,-1827.2,0.00038356,5]
[314093426,1707972633253,-1829.84,0.00038356,5]
[314093427,1707972633262,-1827.61,0.00038356,5]
[314093428,1707972633271,-1785.71,0.00038356,5]
[314093429,1707972633281,-1797.39,0.00038356,5]
[314093430,1707972633291,-1840.27,0.00038356,5]
[314093431,1707972633299,-1842.35,0.00038356,5]
[314093432,1707972633319,-500.0,0.00038356,7]
[314093433,1707972633329,-505.28727571,0.00038356,7]
[314093434,1707972633338,-500.0,0.00038356,7]
[314093435,1707972633348,-500.0,0.00038356,7]
[314093436,1707972633357,-535.35167269,0.00038356,7]
[314093437,1707972633366,-531.81355955,0.00038356,7]
[314093438,1707972633375,-525.24938923,0.00038356,7]
[314093439,1707972633384,-514.91985997,0.00038356,7]
[314093440,1707972633394,-529.28924293,0.00038356,7]
[314093441,1707972633593,-520.50020944,0.00038356,7]
[314093442,1707972633602,-508.97939475,0.00038356,7]
[314093443,1707972633612,-524.90951859,0.00038356,7]
[314093444,1707972633621,-517.19237078,0.00038356,7]
[314093445,1707972633630,-521.63844482,0.00038356,7]
[314093446,1707972633640,-514.51455969,0.00038356,7]
[314093447,1707972633649,-163.22806524,0.00038356,7]
[314093448,1707972633658,-500.0,0.00038356,7]
[314093449,1707972633668,-536.58000967,0.00038356,7]
[314093450,1707972633677,-500.0,0.00038356,7]
[314093451,1707972633686,-500.0,0.00038356,7]
[314093452,1707972633695,-478.90997492,0.00038356,7]
[314093453,1707972633705,-508.04047026,0.00038356,7]
[314093454,1707972633715,-500.0,0.00038356,7]
[314093455,1707972633724,-536.57500858,0.00038356,7]
[314093456,1707972633734,-507.66694738,0.00038356,7]
[314093457,1707972633744,-514.89578224,0.00038356,7]
[314093458,1707972633753,-526.05085391,0.00038356,7]
[314093459,1707972633763,-515.91805314,0.00038356,7]
[314093460,1707972633772,-509.85232746,0.00038356,7]
[314093461,1707972633784,-500.0,0.00038356,7]
[314093462,1707972633794,-417.38412178,0.00038356,7]
[314093463,1707972633803,-500.0,0.00038356,7]
[314093464,1707972633813,-514.21752816,0.00038356,7]
[314093465,1707972633822,-506.46906993,0.00038356,7]
[314093466,1707972633832,-500.0,0.00038356,7]
[314093467,1707972633841,-538.4187582,0.00038356,7]
[314093468,1707972633851,-500.0,0.00038356,7]
[314093469,1707972633860,-500.0,0.00038356,7]
[314093470,1707972633870,-521.11424411,0.00038356,7]
[314093471,1707972633879,-523.78870375,0.00038356,7]
[314093472,1707972633889,-525.20167566,0.00038356,7]
[314093473,1707972633898,-523.97485584,0.00038356,7]
[314093474,1707972633908,-519.7698045,0.00038356,7]
[314093475,1707972633918,-500.0,0.00038356,7]
[314093476,1707972633927,-500.0,0.00038356,7]
[314093477,1707972633937,-500.0,0.00038356,7]
[314093478,1707972633947,-500.0,0.00038356,7]
[314093479,1707972633956,-529.59137068,0.00038356,7]
[314093480,1707972633965,-518.30809308,0.00038356,7]
[314093481,1707972633975,-500.0,0.00038356,7]
[314093482,1707972633984,-531.66088362,0.00038356,7]
[314093483,1707972633993,-517.55564951,0.00038356,7]
[314093484,1707972634002,-516.88491056,0.00038356,7]
[314093485,1707972634012,-516.16671162,0.00038356,7]
[314093486,1707972634021,-511.38957736,0.00038356,7]
[314093487,1707972634031,-513.38736012,0.00038356,7]
[314093488,1707972634040,-514.12572377,0.00038356,7]
[314093489,1707972634049,-507.49875347,0.00038356,7]
[314093490,1707972634058,-507.54282206,0.00038356,7]
[314093491,1707972634068,-500.16941668,0.00038356,7]
[314093492,1707972634077,-528.2370296,0.00038356,7]
[314093493,1707972634088,-518.02342146,0.00038356,7]
[314093494,1707972634098,-506.38621571,0.00038356,7]
[314093495,1707972634108,-537.07880517,0.00038356,7]
[314093496,1707972634119,-504.0668115,0.00038356,7]
[314093497,1707972634128,-527.9211618,0.00038356,7]
[314093498,1707972634137,-528.90513598,0.00038356,7]
[314093499,1707972634148,-529.04389783,0.00038356,7]
[314093500,1707972634157,-518.00919566,0.00038356,7]
[314093501,1707972634167,-529.82648563,0.00038356,7]
[314093502,1707972634177,-517.98318987,0.00038356,7]
[314093503,1707972634186,-524.13882089,0.00038356,7]
[314093504,1707972634196,-513.36903424,0.00038356,7]
[314093505,1707972634206,-500.0,0.00038356,7]
[314093506,1707972634215,-636.56652055,0.00038356,7]
[314093507,1707972634225,-532.01965556,0.00038356,7]
[314093508,1707972634234,-519.59193072,0.00038356,7]
[314093509,1707972634244,-500.0,0.00038356,7]
[314093510,1707972634253,-506.84362158,0.00038356,7]
[314093511,1707972634263,-512.45542507,0.00038356,7]
[314093512,1707972634272,-507.04905882,0.00038356,7]
[314093513,1707972634282,-512.86839764,0.00038356,7]
[314093514,1707972634291,-515.78070298,0.00038356,7]
[314093515,1707972634300,-500.0,0.00038356,7]
[314093516,1707972634310,-161.46086678,0.00038356,7]
[314093517,1707972634319,-461.31717773,0.00038356,7]
[314093518,1707972634329,-555.87420529,0.00038356,7]
[314093519,1707972634339,-522.31850375,0.00038356,7]
[314093520,1707972634349,-536.45306161,0.00038356,7]
[314093521,1707972634358,-666.39133084,0.00038356,7]
[314093522,1707972634368,-500.0,0.00038356,7]
[314093523,1707972634378,-500.0,0.00038356,7]
[314093524,1707972634387,-214.58842608,0.00038356,7]
[314093525,1707972634396,-500.0,0.00038356,7]
[314093526,1707972634405,-588.74079966,0.00038356,7]
[314093527,1707972634414,-500.0,0.00038356,7]
[314093528,1707972634424,-500.0,0.00038356,7]
[314093529,1707972634433,-526.04140866,0.00038356,7]
[314093530,1707972634442,-500.0,0.00038356,7]
[314093531,1707972634451,-513.08608142,0.00038356,7]
[314093532,1707972634461,-500.0,0.00038356,7]
[314093533,1707972634470,-511.33637217,0.00038356,7]
[314093534,1707972634479,-594.95784155,0.00038356,7]
[314093535,1707972634488,-500.0,0.00038356,7]
[314093536,1707972634497,-534.58195182,0.00038356,7]
[314093537,1707972634507,-526.94165787,0.00038356,7]
[314093538,1707972634516,-500.0,0.00038356,2]
[314093539,1707972634525,-544.70951211,0.00038356,7]
[314093540,1707972634534,-500.0,0.00038356,7]
[314093541,1707972634544,-500.0,0.00038356,7]
[314093542,1707972634554,-500.0,0.00038356,7]
[314093543,1707972634564,-500.0,0.00038356,7]
[314093544,1707972634573,-504.17772375,0.00038356,7]
[314093545,1707972634582,-550.65173256,0.00038356,7]
[314093546,1707972634592,-560.96850886,0.00038356,7]
[314093547,1707972634601,-500.0,0.00038356,7]
[314093548,1707972634610,-1000.0,0.00038356,7]
[314093549,1707972634619,-500.0,0.00038356,7]
[314093550,1707972634629,-508.75386279,0.00038356,7]
[314093551,1707972634638,-529.12303255,0.00038356,7]
[314093552,1707972634647,-500.0,0.00038356,7]
[314093553,1707972634656,-500.0,0.00038356,2]
[314093554,1707972634666,-500.0,0.00038356,7]
[314093555,1707972634675,-518.822548,0.00038356,7]
[314093556,1707972634684,-500.0,0.00038356,7]
[314093557,1707972634694,-500.0,0.00038356,7]
[314093558,1707972634703,-500.0,0.00038356,7]
[314093559,1707972634712,-500.0,0.00038356,2]
[314093560,1707972634721,-500.0,0.00038356,7]
[314093561,1707972634731,-500.0,0.00038356,7]
[314093562,1707972634740,-500.0,0.00038356,7]
[314093563,1707972634750,-528.03987453,0.00038356,7]
[314093564,1707972634759,-509.39947936,0.00038356,7]
[314093565,1707972634768,-505.69126226,0.00038356,7]
[314093566,1707972634778,-542.49927847,0.00038356,7]
[314093567,1707972634822,-500.0,0.00038356,7]
[314093568,1707972634832,-500.0,0.00038356,2]
[314093569,1707972634841,-500.0,0.00038356,7]
[314093570,1707972634850,-551.24743222,0.00038356,7]
[314093571,1707972634860,-500.0,0.00038356,7]
[314093572,1707972634869,-602.44,0.00038356,7]
[314093573,1707972634878,-602.44,0.00038356,7]
[314093574,1707972634888,-500.0,0.00038356,7]
[314093575,1707972634897,-500.0,0.00038356,7]
[314093576,1707972634906,-500.0,0.00038356,7]
[314093577,1707972634915,-510.64894492,0.00038356,7]
[314093578,1707972634925,-1000.0,0.00038356,7]
[314093579,1707972634934,-500.0,0.00038356,7]
[314093580,1707972634944,-500.0,0.00038356,7]
[314093581,1707972634954,-500.0,0.00038356,7]
[314093582,1707972634963,-500.0,0.00038356,7]
[314093583,1707972634972,-549.86567395,0.00038356,7]
[314093584,1707972634981,-533.45484258,0.00038356,7]
[314093585,1707972634991,-500.0,0.00038356,7]
[314093586,1707972635000,-500.0,0.00038356,7]
[314093587,1707972635010,-513.68208637,0.00038356,7]
[314093588,1707972635019,-517.31852926,0.00038356,7]
[314093589,1707972635028,-544.22145492,0.00038356,7]
[314093590,1707972635038,-500.0,0.00038356,7]
[314093591,1707972635047,-500.0,0.00038356,7]
[314093592,1707972635056,-502.6990058,0.00038356,7]
[314093593,1707972635066,-645.52726567,0.00038356,7]
[314093594,1707972635075,-500.0,0.00038356,7]
[314093595,1707972635085,-525.35882438,0.00038356,7]
[314093596,1707972635094,-524.10996981,0.00038356,7]
[314093597,1707972635104,-500.0,0.00038356,7]
[314093598,1707972635114,-500.0,0.00038356,7]
[314093599,1707972635124,-511.82218749,0.00038356,7]
[314093600,1707972635133,-500.0,0.00038356,7]
[314093601,1707972635142,-454.32938116,0.00038356,7]
[314093602,1707972635151,-500.0,0.00038356,7]
[314093603,1707972635161,-500.0,0.00038356,7]
[314093604,1707972635170,-500.0,0.00038356,7]
[314093605,1707972635180,-500.0,0.00038356,7]
[314093606,1707972635191,-500.0,0.00038356,7]
[314093607,1707972635200,-520.97276046,0.00038356,7]
[314093608,1707972635209,-500.0,0.00038356,7]
[314093609,1707972635218,-500.0,0.00038356,7]
[314093610,1707972635227,-500.0,0.00038356,7]
[314093611,1707972635237,-379.3916505,0.00038356,7]
[314093612,1707972635246,-500.0,0.00038356,7]
[314093613,1707972635255,-500.0,0.00038356,7]
[314093614,1707972635264,-500.0,0.00038356,7]
[314093615,1707972635273,-514.69139054,0.00038356,7]
[314093616,1707972635283,-500.0,0.00038356,7]
[314093617,1707972635292,-522.65680342,0.00038356,7]
[314093618,1707972635301,-500.0,0.00038356,7]
[314093619,1707972635310,-500.0,0.00038356,7]
[314093620,1707972635319,-561.20873274,0.00038356,7]
[314093621,1707972635329,-240.77468639,0.00038356,7]
[314093622,1707972635339,-500.0,0.00038356,7]
[314093623,1707972635348,-500.0,0.00038356,7]
[314093624,1707972635358,-500.0,0.00038356,7]
[314093625,1707972635367,-500.0,0.00038356,7]
[314093626,1707972635376,-539.21494036,0.00038356,7]
[314093627,1707972635385,-550.74199097,0.00038356,7]
[314093628,1707972635394,-500.0,0.00038356,7]
[314093629,1707972635404,-549.08476759,0.00038356,7]
[314093630,1707972635413,-500.0,0.00038356,7]
[314093631,1707972635423,-541.16633908,0.00038356,7]
[314093632,1707972635432,-150.0,0.00038356,7]
[314093633,1707972635441,-500.0,0.00038356,7]
[314093634,1707972635450,-500.0,0.00038356,7]
[314093635,1707972635460,-541.72491053,0.00038356,7]
[314093636,1707972635469,-527.82606736,0.00038356,7]
[314093637,1707972635478,-517.02777696,0.00038356,7]
[314093638,1707972635488,-521.78845858,0.00038356,7]
[314093639,1707972635497,-562.92059983,0.00038356,7]
[314093640,1707972635506,-500.0,0.00038356,7]
[314093641,1707972635516,-555.64079621,0.00038356,7]
[314093642,1707972635525,-524.55946343,0.00038356,7]
[314093643,1707972635535,-513.77552284,0.00038356,7]
[314093644,1707972635544,-500.0,0.00038356,7]
[314093645,1707972635553,-523.38125968,0.00038356,7]
[314093646,1707972635563,-500.0,0.00038356,7]
[314093647,1707972635572,-500.0,0.00038356,7]
[314093648,1707972635581,-545.25330168,0.00038356,7]
[314093649,1707972635591,-525.67722697,0.00038356,7]
[314093650,1707972635601,-505.88423279,0.00038356,7]
[314093651,1707972635611,-316.06021573,0.00038356,7]
[314093652,1707972635620,-500.0,0.00038356,7]
[314093653,1707972635629,-530.82449869,0.00038356,7]
[314093654,1707972635638,-544.63681163,0.00038356,7]
[314093655,1707972635647,-500.0,0.00038356,7]
[314093656,1707972635656,-532.46016243,0.00038356,7]
[314093657,1707972635666,-526.84885747,0.00038356,7]
[314093658,1707972635675,-558.34742026,0.00038356,7]
[314093659,1707972635684,-546.63004777,0.00038356,7]
[314093660,1707972635694,-500.0,0.00038356,7]
[314093661,1707972635703,-521.63801641,0.00038356,7]
[314093662,1707972635713,-180.66385427,0.00038356,7]
[314093663,1707972635722,-500.0,0.00038356,7]
[314093664,1707972635731,-500.0,0.00038356,7]
[314093665,1707972635741,-500.0,0.00038356,7]
[314093666,1707972635750,-506.45717648,0.00038356,7]
[314093667,1707972635760,-500.0,0.00038356,7]
[314093668,1707972635769,-500.0,0.00038356,7]
[314093669,1707972635779,-500.0,0.00038356,7]
[314093670,1707972635789,-526.18764561,0.00038356,7]
[314093671,1707972635798,-575.81227498,0.00038356,2]
[314093672,1707972635808,-500.0,0.00038356,7]
[314093673,1707972635817,-500.0,0.00038356,7]
[314093674,1707972635826,-509.17184813,0.00038356,7]
[314093675,1707972635837,-500.0,0.00038356,7]
[314093676,1707972635846,-500.0,0.00038356,7]
[314093677,1707972635855,-500.0,0.00038356,7]
[314093678,1707972635865,-500.0,0.00038356,7]
[314093679,1707972635875,-500.0,0.00038356,7]
[314093680,1707972635884,-500.0,0.00038356,7]
[314093681,1707972635894,-500.0,0.00038356,7]
[314093682,1707972635903,-500.0,0.00038356,7]
[314093683,1707972635913,-500.0,0.00038356,7]
[314093684,1707972635924,-500.0,0.00038356,7]
[314093685,1707972635933,-509.77540713,0.00038356,7]
[314093686,1707972635943,-516.02146452,0.00038356,7]
[314093687,1707972635952,-500.0,0.00038356,7]
[314093688,1707972635961,-500.0,0.00038356,7]
[314093689,1707972635971,-585.36827855,0.00038356,7]
[314093690,1707972635980,-506.23206826,0.00038356,7]
[314093691,1707972635990,-507.05571081,0.00038356,7]
[314093692,1707972635999,-500.0,0.00038356,7]
[314093693,1707972636009,-500.0,0.00038356,7]
[314093694,1707972636018,-500.0,0.00038356,7]
[314093695,1707972636027,-500.0,0.00038356,7]
[314093696,1707972636037,-500.0,0.00038356,7]
[314093697,1707972636046,-500.0,0.00038356,7]
[314093698,1707972636056,-500.0,0.00038356,7]
[314093699,1707972636065,-526.8737047,0.00038356,7]
[314093700,1707972636074,-500.0,0.00038356,7]
[314093701,1707972636084,-489.91552507,0.00038356,7]
[314093702,1707972636093,-500.0,0.00038356,7]
[314093703,1707972636103,-513.5583782,0.00038356,7]
[314093704,1707972636114,-533.26277129,0.00038356,7]
[314093705,1707972636123,-500.0,0.00038356,7]
[314093706,1707972636132,-514.98808207,0.00038356,7]
[314093707,1707972636143,-500.0,0.00038356,7]
[314093708,1707972636152,-511.99434384,0.00038356,7]
[314093709,1707972636161,-512.22557376,0.00038356,7]
[314093710,1707972636171,-500.0,0.00038356,7]
[314093711,1707972636180,-510.76620149,0.00038356,7]
[314093712,1707972636192,-526.7044343,0.00038356,7]
[314093713,1707972636201,-507.26248214,0.00038356,7]
[314093714,1707972636210,-525.30196184,0.00038356,7]
[314093715,1707972636218,-532.08885621,0.00038356,7]
[314093716,1707972636228,-514.83061348,0.00038356,7]
[314093717,1707972636237,-500.0,0.00038356,7]
[314093718,1707972636246,-500.0,0.00038356,7]
[314093719,1707972636256,-500.0,0.00038356,7]
[314093720,1707972636265,-594.78873923,0.00038356,7]
[314093721,1707972636274,-500.0,0.00038356,7]
[314093722,1707972636284,-500.0,0.00038356,7]
[314093723,1707972636293,-513.07399887,0.00038356,7]